Cogmind - Beta 16 @@@ ROGUE MODE // 2025.11.25 @ 10:31:52 Player: Mozco Result: Destroyed by G-47 Trooper with Particle Gun Performance ------------- Evolutions (2) 1000 Regions Visited (7) 1400 Robots Destroyed (186) 930 Value Destroyed (5083) 5083 Prototype IDs (47) 940 Alien Tech Used (0) 0 Bonus (851) 851 TOTAL SCORE: 10204 Bonus ------- High Alert Combat Kills 526 Follower Combat Kills 25 Aligned with FarCom 300 Cogmind --------- Core Integrity 0/550 Matter 300/300 Energy 10/290 System Corruption 1% Temperature Cool (20) Movement Treading (210) Ox1 Location -8/Materials Parts ------- > --- POWER (1) -------- Improved Deuterium Engine > --- PROPULSION (4) --- Armored Treads Armored Treads Armored Treads > --- UTILITY (4) ------ Improved Cooling System Huge Storage Unit Shield Generator > --- WEAPON (2) ------- Advanced Beam Rifle Advanced Beam Rifle > --- INVENTORY (25) --- Armored Treads Armored Treads Advanced Treads Improved Cooling System High-capacity Matter Pod (200) Structural Scanner Hardened Heavy Armor Plating Layered Light Armor Plating Layered Light Armor Plating Hacking Suite Dynamic Insulation System Field Recycling Unit (0) Advanced Beam Rifle Advanced Beam Rifle Improved Assault Rifle EMP Blaster EMP Blaster Mini Grenade Launcher Great Maul Deploy-a-Sentry Deploy-a-Sentry Deploy-a-Sentry Peak State ------------ > --- POWER ------------ Improved Ion Engine > --- PROPULSION ------- Improved Treads Armored Treads Armored Treads Armored Treads > --- UTILITY ---------- Improved Cooling System Huge Storage Unit Decoy Drone Bay > --- WEAPON ----------- Advanced Beam Rifle Advanced Beam Rifle > --- INVENTORY -------- Light Treads Armored Treads Improved Cooling System High-capacity Matter Pod Structural Scanner Improved Propulsion Shielding Improved Propulsion Shielding Improved Propulsion Shielding Improved Propulsion Shielding Layered Light Armor Plating Layered Light Armor Plating Layered Light Armor Plating Reflective Plating Hacking Suite Field Recycling Unit Improved Medium Laser Advanced Beam Rifle Advanced Beam Rifle Improved Assault Rifle Great Maul Deploy-a-Sentry Deploy-a-Sentry Deploy-a-Sentry [Rating: 48] Favorites ----------- Power Improved Ion Engine Engine Improved Ion Engine Propulsion Light Treads Treads Light Treads Utility Huge Storage Unit Device Improved Heat Sink Storage Huge Storage Unit Hackware Hacking Suite Protection Light Armor Plating Weapon Advanced Beam Rifle Energy Gun Advanced Beam Rifle Energy Cannon Advanced Beam Cannon Ballistic Gun Autogun Launcher Grenade Launcher Special Melee Weapon Datajack Build | -11 -10 -10 -9 -9 -9 -8 -8 ------- Run | Yrd Mat Min Mat Min Exi Min Mat Slots Evolved 4 | . . . 2 . . . 2 Power . | . . . . . . . . Propulsion 2 | . . . 1 . . . 1 Utility 2 | . . . 1 . . . 1 Weapon . | . . . . . . . . Parts Attached 92 | 6 15 . 41 1 1 . 28 Power 13 | 1 3 . 7 . . . 2 Engine 13 | 1 3 . 7 . . . 2 Core . | . . . . . . . . Reactor . | . . . . . . . . Propulsion 27 | 2 3 . 17 . . . 5 Treads 27 | 2 3 . 17 . . . 5 Leg . | . . . . . . . . Wheel . | . . . . . . . . Hover . | . . . . . . . . Flight . | . . . . . . . . Utility 32 | 1 7 . 10 . . . 14 Device 9 | . 5 . 1 . . . 3 Storage 6 | 1 2 . 2 . . . 1 Processor . | . . . . . . . . Hackware 3 | . . . 2 . . . 1 Protection 14 | . . . 5 . . . 9 Artifact . | . . . . . . . . Weapon 20 | 2 2 . 7 1 1 . 7 Energy Gun 7 | . . . 2 . . . 5 Energy Cannon 1 | . . . 1 . . . . Ballistic Gun 8 | 2 2 . 3 1 . . . Ballistic Cannon . | . . . . . . . . Launcher 3 | . . . 1 . . . 2 Special Weapon . | . . . . . . . . Impact Weapon . | . . . . . . . . Slashing Weapon . | . . . . . . . . Piercing Weapon . | . . . . . . . . Special Melee Weapon 1 | . . . . . 1 . . Unidentified Prototypes 5 | . . . 3 . . . 2 Parts Lost 26 | . 4 . 7 . . . 15 Power 5 | . 2 . 1 . . . 2 Propulsion 7 | . 2 . 1 . . . 4 Utility 9 | . . . 2 . . . 7 Weapon 5 | . . . 3 . . . 2 Highest Loss Streak 4 | . 2 . 3 . . . 4 To Critical Strikes . | . . . . . . . . Average Backups 19 | 1 10 19 23 24 22 21 20 Power 1 | . . 3 1 1 1 1 . Propulsion 3 | . . 1 5 7 6 5 3 Utility 8 | . 6 9 7 11 11 11 9 Weapon 5 | . 2 4 6 4 4 4 6 Tool/Special . | . . . . . . . . Unused Backups 29 | . 2 . 9 . . . 18 Power 2 | . . . 2 . . . . Propulsion 3 | . 1 . . . . . 2 Utility 12 | . . . 2 . . . 10 Weapon 12 | . 1 . 5 . . . 6 Tool/Special . | . . . . . . . . Average Slot Usage (%) 96 | . 87 100 98 99 100 100 98 Engine 10 | . 9 14 10 11 11 11 8 Treads 31 | . 27 28 32 33 33 33 35 Device 9 | . 7 14 7 11 11 11 11 Storage 11 | . 13 14 11 11 11 11 9 Hackware 1 | . . . 6 . . . . Protection 7 | . . . 8 11 11 11 13 Energy Gun 5 | . . . 6 . . . 16 Ballistic Gun 16 | . 27 28 14 21 17 22 1 Peak Build Rating 48 | 6 10 10 26 21 23 23 48 Average Rating 21 | 5 7 10 18 20 20 23 41 On Entrance 14 | . 6 10 10 20 21 23 23 Avg Prop Armor Cover (%) 8 | . . . . . . . 8 Naked Turns . | . . . . . . . . Heaviest Build 146 | 11 146 49 98 97 97 97 111 Greatest Support 83 | 40 40 40 63 60 60 60 83 Greatest Overweight (x) 15 | . 15 1 2 1 1 1 5 Average Overweight (x) . | . 1 1 . 1 1 1 1 Largest Inventory Capacity 30 | 8 30 20 25 25 25 25 25 Average Capacity 23 | 7 20 20 23 25 25 25 25 Most Carried 25 | 2 20 20 25 25 25 25 25 Average Carried 20 | 1 10 19 23 24 24 25 24 Final Capacity 25 | 8 20 20 25 25 25 25 25 Final Carried 25 | 2 20 19 25 25 25 25 23 Class Distribution -------------------- 53% | Scavenger-Mutant 42% | Mutant 3% | Hauler-Mutant Dominant Class ---------------- Mutant | -10/Materials Scavenger-Mutant | -10/Mines Scavenger-Mutant | -9/Materials Scavenger-Mutant | -9/Mines Scavenger-Mutant | -9/Exiles Scavenger-Mutant | -8/Mines Mutant | -8/Materials Resources | -11 -10 -10 -9 -9 -9 -8 -8 ----------- Run | Yrd Mat Min Mat Min Exi Min Mat Matter Collected 3648 | 276 1066 15 1521 27 . 70 673 Remotely . | . . . . . . . . Salvage Created 7230 | 68 1203 68 2822 . . . 3069 Parts 384 | 3 69 2 179 . . . 131 Haulers Intercepted 12 | . 2 . 6 . . . 4 Recyclers Shooed 8 | . 1 1 2 . . . 4 Parts Field Recycled . | . . . . . . . . Retrieved Matter . | . . . . . . . . Parts Self-Destructed . | . . . . . . . . Prevented . | . . . . . . . . Parts Restored . | . . . . . . . . Kills | -11 -10 -10 -9 -9 -9 -8 -8 ------- Run | Yrd Mat Min Mat Min Exi Min Mat Combat Hostiles Destroyed 128 | . 25 2 53 . . . 48 Guns 109 | . 25 2 42 . . . 40 AOE 15 | . . . 11 . . . 4 Classes Destroyed 18 | 1 6 2 5 . . . 4 Worker 8 | . 1 . 4 . . . 3 Builder 5 | . . . 2 . . . 3 Tunneler 2 | . . 1 1 . . . . Hauler 12 | . 2 . 6 . . . 4 Recycler 13 | 1 2 . 4 . . . 6 Mechanic 2 | . . . 2 . . . . Operator 5 | . 1 . 3 . . . 1 Watcher 12 | . 3 . 4 . . . 5 Swarmer 20 | . 5 . 11 . . . 4 Cutter 3 | . . . . . . . 3 Grunt 74 | . 20 1 28 . . . 25 Brawler 3 | . . . 2 . . . 1 Duelist 6 | . . . 3 . . . 3 Protector 1 | . . . . . . . 1 Sentry 16 | . . . 9 . . . 7 Specialist 2 | . . . . . . . 2 Heavy 2 | . . . . . . . 2 Assembled 1 | . . 1 . . . . . Best Kill Streak 10 | 1 5 1 10 . . . 6 Combat Bots Only 7 | . 5 1 7 . . . 4 Max Kills in Single Turn 3 | 1 1 1 3 . . . 3 Gunslinging . | . . . . . . . . Exploded 3 | . . . 3 . . . 1 Melee . | . . . . . . . . Uniques/NPCs Destroyed . | . . . . . . . . Combat | -11 -10 -10 -9 -9 -9 -8 -8 -------- Run | Yrd Mat Min Mat Min Exi Min Mat Hostile Shots Fired 649 | . 103 9 202 . . . 335 Missed 195 | . 34 1 58 . . . 102 Hits 454 | . 69 8 144 . . . 233 Melee 13 | . . 1 6 . . . 6 Projectile 441 | . 69 7 138 . . . 227 AOE 3 | . . . . . . . 3 Critical Strikes 25 | . 3 . 2 . . . 20 Actively Blocked 5 | . . . . . . . 5 Damage Taken 6942 | . 757 118 1908 . . . 4159 Core 891 | . 118 36 182 . . . 555 Absorbed by Shields 140 | . . . . . . . 140 Redirected to Shielding 574 | . . . 52 . . . 522 Ignored by Resistances 108 | . . . . . . . 108 Regen/Repaired (Parts) 788 | . 148 . 270 . . . 370 Core Remaining (%) 64 | 100 . 38 . . . 54 . Volleys Fired 503 | 6 115 5 181 1 . . 195 Largest 2 | 2 2 2 2 2 . . 2 Hottest 122 | 40 50 50 83 46 . . 122 Shots Fired 979 | 12 230 10 340 2 . . 385 Gun 963 | 12 230 10 329 2 . . 380 Cannon . | . . . . . . . . Launcher 16 | . . . 11 . . . 5 Special . | . . . . . . . . Kinetic 555 | 12 230 10 247 2 . . 54 Thermal 408 | . . . 82 . . . 326 Explosive 14 | . . . 11 . . . 3 Electromagnetic 2 | . . . . . . . 2 Robot Hit Streak 22 | 3 13 6 15 . . . 22 Robot Miss Streak 5 | 3 3 2 5 . . . 4 Penetration Max . | . . . . . . . . Secondary Targets 17 | . 3 . 4 . . . 10 Max Gunslinging Chain 1 | . 1 . 1 . . . 1 Shots Hit Robots 650 | 7 140 7 226 . 3 . 267 Core Hits 293 | 2 60 3 115 . . . 113 Critical Kills 5 | . 3 . 2 . . . . Critical Parts Destroyed 6 | . 4 . 2 . . . . Critical Strikes 35 | . 7 . 4 . . . 24 Burn 24 | . . . . . . . 24 Destroy 11 | . 7 . 4 . . . . Melee Attacks 3 | . . . . . 3 . . Impact . | . . . . . . . . Slashing . | . . . . . . . . Piercing . | . . . . . . . . Sneak Attacks 3 | . . . . . 3 . . Combat Hostiles . | . . . . . . . . Follow-up Attacks . | . . . . . . . . Damage Inflicted 12997 | 73 1611 139 5100 16 . 7 6051 Guns 11200 | 73 1598 106 3910 16 . . 5497 Cannons . | . . . . . . . . Explosions 1653 | . . . 1117 . . . 536 Melee . | . . . . . . . . Ramming 144 | . 13 33 73 . . 7 18 Kinetic 5142 | 73 1598 106 2780 16 . . 569 Thermal 6058 | . . . 1130 . . . 4928 Explosive 1394 | . . . 1117 . . . 277 Electromagnetic 259 | . . . . . . . 259 Impact . | . . . . . . . . Slashing . | . . . . . . . . Piercing . | . . . . . . . . Highest Corruption 1 | . . . . . . . 1 Average Corruption 1 | . . . . . . . 1 Corruption Purged . | . . . . . . . . Corruption Blocked . | . . . . . . . . Effects 6 | . . . . . . . 6 Message Errors 1 | . . . . . . . 1 Matter Fused 1 | . . . . . . . 1 Heat Flow Errors 2 | . . . . . . . 2 Energy Discharges 1 | . . . . . . . 1 Data Loss (major) 1 | . . . . . . . 1 Overload Shots . | . . . . . . . . Overflow Damage 6 | . . . 6 . . . . Projectiles . | . . . . . . . . Explosions 6 | . . . 6 . . . . Melee . | . . . . . . . . Knockbacks 1 | . . . 1 . . . . Impact 1 | . . . 1 . . . . Kinetic . | . . . . . . . . Secondary . | . . . . . . . . Self-Inflicted Damage 173 | . . . 69 . . . 104 Shots 8 | . . . 4 . . . 4 Rammed 18 | . 4 6 5 . . 1 2 Targets Rammed 19 | . 4 7 5 . . 1 2 Kicked . | . . . . . . . . Crushed 1 | . . 1 . . . . . Highest Temperature 113 | . 32 10 113 . . . 95 Average Temperature 19 | . 9 7 16 . . . 25 Received Heat Transfer 2695 | . 381 33 672 . . . 1609 Siege Activations . | . . . . . . . . Martial Activations . | . . . . . . . . Shielding Activations . | . . . . . . . . Robots Disrupted . | . . . . . . . . Combat Hostiles . | . . . . . . . . Robots Corrupted . | . . . . . . . . Combat Hostiles . | . . . . . . . . Parts Fried . | . . . . . . . . Impact Corruptions . | . . . . . . . . Robots Melted 4 | . . . . . . . 4 Combat Hostiles 4 | . . . . . . . 4 Parts Melted 22 | . . . . . . . 22 Heat Transferred 11829 | . . . 1300 . . . 10529 Parts Sabotaged . | . . . . . . . . Parts Stolen . | . . . . . . . . Parts Stripped . | . . . . . . . . Power Chain Reactions . | . . . . . . . . Alert | -11 -10 -10 -9 -9 -9 -8 -8 ------- Run | Yrd Mat Min Mat Min Exi Min Mat Maximum Alert Level 3 | . 1 . 3 1 . . 2 Low Security (%) 57 | 100 93 100 18 10 . 100 50 Level 1 10 | . 6 . 7 89 . . 12 Level 2 23 | . . . 46 . . . 36 Level 3 7 | . . . 26 . . . . Level 4 . | . . . . . . . . Level 5 . | . . . . . . . . High Security . | . . . . . . . . Max Security . | . . . . . . . . Sterilizations 1 | . . . 1 . . . . Peak Influence 916 | 5 213 70 916 354 . . 695 Initial 354 | . . 70 . 354 . . . Average 282 | . 110 7 544 269 . . 309 Influence Increases 3966 | 5 756 81 1658 . . . 1466 Destroy 0b10 Robot/C 2540 | . 500 40 1060 . . . 940 Destroy 0b10 Robot/NC 320 | 5 45 5 150 . . . 115 Destroy Leader 638 | . 110 10 270 . . . 248 Allied During Kill 8 | . . 6 2 . . . . Successful Hack 141 | . 23 19 45 . . . 54 Select Force Hacks 90 | . 60 . 30 . . . . Disable Machine 105 | . 15 . 45 . . . 45 Destroy Structure 64 | . 3 1 41 . . . 19 Partial Spotted 15 | . . . . . . . 15 Lose Combat Pursuer 45 | . . . 15 . . . 30 Influence Decreases 3273 | 5 576 261 748 726 184 . 773 Entered New Map 850 | . . 110 . 556 184 . . Time Decay 2153 | 5 536 151 658 170 . . 633 Lost Part 250 | . 40 . 70 . . . 140 Lost Ally 20 | . . . 20 . . . . Squads Dispatched 30 | . 9 1 11 . . . 9 Investigation 15 | . 7 1 5 . . . 2 Extermination . | . . . . . . . . Reinforcement 12 | . 2 . 4 . . . 6 Assault 3 | . . . 2 . . . 1 Garrison . | . . . . . . . . Intercept . | . . . . . . . . Searches Triggered . | . . . . . . . . Construction Impeded 1 | . . . . . . . 1 Haulers Reinforced . | . . . . . . . . Active Scanning Responses . | . . . . . . . . Cargo Convoy Interrupts . | . . . . . . . . Stealth | -11 -10 -10 -9 -9 -9 -8 -8 --------- Run | Yrd Mat Min Mat Min Exi Min Mat Distress Signals 13 | . 2 . 7 . . . 4 Communications Jammed . | . . . . . . . . Distress Signals . | . . . . . . . . Times Spotted 177 | . 34 6 71 . . . 66 Peak Tracking Total 7 | . 4 2 7 . . . 6 Tactical Retreats 2 | . . . 1 . . . 1 Traps | -11 -10 -10 -9 -9 -9 -8 -8 ------- Run | Yrd Mat Min Mat Min Exi Min Mat Traps Triggered 8 | . 6 . 1 . . . 1 Indirectly . | . . . . . . . . Trap Hack Attempts . | . . . . . . . . Triggered . | . . . . . . . . Disarmed . | . . . . . . . . Reprogrammed . | . . . . . . . . Reused . | . . . . . . . . Traps Extracted . | . . . . . . . . Installed . | . . . . . . . . Triggered . | . . . . . . . . Machines | -11 -10 -10 -9 -9 -9 -8 -8 ---------- Run | Yrd Mat Min Mat Min Exi Min Mat Machines Disabled 8 | . 1 . 4 . . . 3 Max in Single Turn 1 | . 1 . 1 . . . 1 Machines Repaired . | . . . . . . . . Machines Dismantled . | . . . . . . . . Machines Sabotaged . | . . . . . . . . Overloaded Fab Kills . | . . . . . . . . Hacking | -11 -10 -10 -9 -9 -9 -8 -8 --------- Run | Yrd Mat Min Mat Min Exi Min Mat Machines Accessed 38 | . 9 1 11 1 2 . 14 Terminals 20 | . 6 1 5 . . . 8 Fabricators . | . . . . . . . . Repair Stations 5 | . 1 . 2 . . . 2 Recycling Units 6 | . 2 . 2 . . . 2 Scanalyzers 4 | . . . 2 . . . 2 Garrison Access . | . . . . . . . . Total Hacks 154 | . 27 5 66 1 2 . 53 Successful 120 | . 16 3 56 1 2 . 42 Failed 32 | . 10 2 9 . . . 11 Catastrophic 5 | . 1 . 1 . . . 3 Database Lockouts 2 | . 1 . 1 . . . . Manual 68 | . 21 5 20 . 1 . 21 Terminals 66 | . 21 5 20 . . . 20 Fabricators . | . . . . . . . . Repair Stations 21 | . 4 . 10 . . . 7 Recycling Units 14 | . 2 . 7 . . . 5 Scanalyzers 50 | . . . 29 . . . 21 Garrison Access . | . . . . . . . . Terminal Hacks 27 | . 7 3 7 1 2 . 7 Record 1 | . . . . . 1 . . Part Schematic 2 | . 1 1 . . . . . Robot Analysis 15 | . 4 2 4 . . . 5 Prototype ID Bank 3 | . 2 . 1 . . . . Open Door 1 | . . . . 1 . . . Branch Access Points 1 | . . . . . . . 1 Locate Traps 1 | . . . . . . . 1 Hauler Manifests 1 | . . . 1 . . . . Zone Layout 1 | . . . 1 . . . . Proto ID Catalog 1 | . . . . . 1 . . Fabricator Hacks . | . . . . . . . . Repair Station Hacks 17 | . 4 . 8 . . . 5 Scan Component 10 | . 2 . 5 . . . 3 Repair 7 | . 2 . 3 . . . 2 Recycling Unit Hacks 1 | . . . 1 . . . . Retrieve Components 1 | . . . 1 . . . . Scanalyzer 50 | . . . 29 . . . 21 Insert Component 23 | . . . 13 . . . 10 Analyze 26 | . . . 16 . . . 10 Retrieve Study 1 | . . . . . . . 1 Garrison Access Hacks . | . . . . . . . . Unauthorized Hacks 25 | . 5 . 11 . . . 9 Terminals 14 | . 3 . 6 . . . 5 Track 1 | . . . 1 . . . . Botnet 10 | . 2 . 4 . . . 4 Disrupt 3 | . 1 . 1 . . . 1 Fabricators . | . . . . . . . . Repair Stations . | . . . . . . . . Recycling Units 11 | . 2 . 5 . . . 4 Monitor 1 | . . . 1 . . . . Reject 3 | . . . 1 . . . 2 Recyclers 1 | . . . 1 . . . . Mask 3 | . . . 1 . . . 2 Tunnel 3 | . 2 . 1 . . . . Scanalyzers . | . . . . . . . . Garrison Access . | . . . . . . . . Data Cores Recovered . | . . . . . . . . Used . | . . . . . . . . Hacking Detections 31 | . 7 1 10 . . . 13 Full Trace Events 13 | . 5 1 4 . . . 3 Feedback Events . | . . . . . . . . Feedback Blocked . | . . . . . . . . Robot Schematics Acquired . | . . . . . . . . Robots Built . | . . . . . . . . Authchips . | . . . . . . . . Time . | . . . . . . . . Total Robot Build Rating . | . . . . . . . . Part Schematics Acquired 25 | . 1 1 13 . . . 10 Parts Built . | . . . . . . . . Authchips . | . . . . . . . . Time . | . . . . . . . . Total Part Build Rating . | . . . . . . . . Part Studies Acquired 1 | . . . . . . . 1 Parts Repaired 7 | . 2 . 3 . . . 2 Time 206 | . 52 . 78 . . . 76 Parts Recycled . | . . . . . . . . Recycled Matter . | . . . . . . . . Retrieved Matter . | . . . . . . . . Retrieved Components 2 | . . . 2 . . . . Parts Scanalyzed 23 | . . . 13 . . . 10 Part Schematics Acquired 23 | . . . 13 . . . 10 Parts Damaged 3 | . . . 3 . . . . Bothacking | -11 -10 -10 -9 -9 -9 -8 -8 ------------ Run | Yrd Mat Min Mat Min Exi Min Mat Used RIF Installer . | . . . . . . . . Robots Hacked 3 | . . . . . 3 . . Non-combat 2 | . . . . . 2 . . Combat 1 | . . . . . 1 . . Robot Hacks Applied 3 | . . . . . 3 . . parse_system 3 | . . . . . 3 . . Relay Couplers Released . | . . . . . . . . Fabnet Peak Effective % . | . . . . . . . . Robots Rewired . | . . . . . . . . Allies Hacked . | . . . . . . . . Hacks Repelled . | . . . . . . . . Allies | -11 -10 -10 -9 -9 -9 -8 -8 -------- Run | Yrd Mat Min Mat Min Exi Min Mat Total Allies 2 | . . 2 . . . . . Largest Group 2 | . . 2 1 . . . . Highest-Rated Group 43 | . . 43 31 . . . . Highest-Rated Ally 31 | . . 31 31 . . . . Total Orders 1 | . . . . . . . 1 EXPLORE 1 | . . . . . . . 1 Ally Attacks 27 | . . 21 6 . . . . Total Damage 401 | . . 297 104 . . . . Kills 5 | . . 4 1 . . . . Allies Corrupted . | . . . . . . . . Allies Melted . | . . . . . . . . Intel | -11 -10 -10 -9 -9 -9 -8 -8 ------- Run | Yrd Mat Min Mat Min Exi Min Mat Active Infowar (turns) 1449 | . 97 1346 6 . . . . Terrain 1449 | . 97 1346 6 . . . . Robot Analysis Total 15 | . 4 2 4 . . . 5 Derelict Logs Recovered 2 | . . 1 . 1 . . . Drone Launches 1 | . . . . . . . 1 Drone Recoveries . | . . . . . . . . Exploration | -11 -10 -10 -9 -9 -9 -8 -8 ------------- Run | Yrd Mat Min Mat Min Exi Min Mat Turns Passed 12395 | 124 2671 1346 3323 357 1145 288 3141 Spaces Moved 4352 | 63 875 415 1208 147 471 120 1053 Core 5 | 3 2 . . . . . . Treads 4347 | 60 873 415 1208 147 471 120 1053 Legs . | . . . . . . . . Wheels . | . . . . . . . . Hover . | . . . . . . . . Flight . | . . . . . . . . Fastest Speed 50 | 50 160 240 160 240 240 240 210 Average Speed 230 | 154 253 240 218 240 240 240 220 Slowest Speed 800 | 160 800 240 320 240 240 240 370 Overloaded Moves . | . . . . . . . . Propulsion Burnouts . | . . . . . . . . Robots Hopped . | . . . . . . . . Potential Cave-ins . | . . . . . . . . Cave-ins Triggered . | . . . . . . . . Time Travels 1 | . . . . . 1 . . Exploration Rate (%) 60 | 5 98 82 81 38 65 29 86 Regions Visited 7 Branch Regions 4 Pre-discovered Areas 5 | . 2 1 1 . 1 . . Known Exits Taken . | . . . . . . . . Unknown Exits Taken 7 | 1 1 1 1 1 1 1 . Scrap Searched 4 | . . 1 . 1 . 2 . Spaces Dug 25 | . . . 13 . . . 12 Terrain Destroyed 65 | . 3 1 46 . . . 15 Melee . | . . . . . . . . Projectile 5 | . 3 1 1 . . . . AOE 60 | . . . 45 . . . 15 Terrain Rammed . | . . . . . . . . Walls Destroyed . | . . . . . . . . Machines Disabled . | . . . . . . . . Actions | -11 -10 -10 -9 -9 -9 -8 -8 --------- Run | Yrd Mat Min Mat Min Exi Min Mat Total 5767 | 76 1102 748 1600 151 485 120 1485 Wait 594 | . 65 319 68 . . . 142 Move 4345 | 62 874 414 1207 146 470 119 1053 Hop . | . . . . . . . . Pick Up 80 | 2 17 1 32 1 3 . 24 Fast Attach 44 | 6 13 . 12 . 1 . 12 Attach 34 | . 3 . 10 1 1 . 19 Detach . | . . . . . . . . Swap 65 | . 8 . 36 . 3 . 18 Drop 80 | . 3 2 49 2 4 . 20 Fire 503 | 6 115 5 181 1 . . 195 Melee 3 | . . . . . 3 . . Ram . | . . . . . . . . Kick . | . . . . . . . . Crush 19 | . 4 7 5 . . 1 2 Escape Stasis . | . . . . . . . . Rewire . | . . . . . . . . Trap . | . . . . . . . . Miscellaneous . | . . . . . . . . Route ------- -11/Scrapyard -10/Materials (discovered 6 exits: *Mat x3 / *Min x2 / [*Sub]) -10/Mines (discovered 2 exits: *Mat x2) -9/Materials (discovered 3 exits: *Mat x2 / *Min) -9/Mines (discovered 2 exits: *Mat / *Exi) -9/Exiles -8/Mines -8/Materials (discovered 3 exits: [*Fac x3]) History --------- Turn | Location | Event 4 | -11/Scrapyard | Discovered new exit (range 16) 125 | -11/Scrapyard | Entered Materials 311 | -10/Materials | Build established: Mutant 574 | -10/Materials | Discovered new exit (range 16) 622 | -10/Materials | Build established: Hauler-Mutant 865 | -10/Materials | Discovered new exit (range 15) 1086 | -10/Materials | Build established: Mutant 1225 | -10/Materials | Derelicts attacked the area 1583 | -10/Materials | Discovered new exit (range 7) 1781 | -10/Materials | Central database locked down 1886 | -10/Materials | Discovered new exit (range 14) 2130 | -10/Materials | Discovered new exit (range 8) 2387 | -10/Materials | Discovered new exit (range 14) 2529 | -10/Materials | Repaired Lgt. Treads 2556 | -10/Materials | Repaired Lgt. Treads 2796 | -10/Materials | Entered Mines 2835 | -10/Mines | Discovered new exit (range 6) 2876 | -10/Mines | Learned location of Zion (-6) 2895 | -10/Mines | Discovered new exit (range 7) 2990 | -10/Mines | Build established: Scavenger-Mutant 3384 | -10/Mines | Received a Rocket Launcher from a helpful Derelict 3459 | -10/Mines | Core integrity fell below 50% 3597 | -10/Mines | Assembled infested the area 3602 | -10/Mines | Assisted by a Guerilla fighting off Assembled 4142 | -10/Mines | Entered Materials 4142 | -9/Materials | Accompanied by 1 ally 4142 | -9/Materials | Evolved 2 slots: Propulsion x1, Utility x1 4147 | -9/Materials | Led the pair of lost Derelicts to an unsafe place 4546 | -9/Materials | Central database locked down 4628 | -9/Materials | Repaired Lgt. Treads 4678 | -9/Materials | Repaired Lgt. Treads 4712 | -9/Materials | Repaired Lgt. Treads 4780 | -9/Materials | Discovered new exit (range 9) 5342 | -9/Materials | First assault squad dispatched 5354 | -9/Materials | Discovered new exit (range 16) 5477 | -9/Materials | Lost 3 parts (1u2w) 6000 | -9/Materials | Discovered new exit (range 14) 7145 | -9/Materials | Destroyed 7 combat bots 7182 | -9/Materials | Sterilization system engaged 7182 | -9/Materials | Non-combat units ordered to evacuate 7282 | -9/Materials | Combat units ordered to evacuate 7465 | -9/Materials | Entered Mines 7523 | -9/Mines | Discovered new exit (range 11) 7668 | -9/Mines | Found the Drone Emporium 7682 | -9/Mines | Found Prototype Device 7747 | -9/Mines | Learned Materials terminal intel 7807 | -9/Mines | Deemed a non-threat by the Exiles lab entrance 7810 | -9/Mines | Discovered new exit (range 5) 7822 | -9/Mines | Entered Exiles 7878 | -9/Exiles | Met 8R-AWN 7923 | -9/Exiles | Met EX-HEX 7990 | -9/Exiles | Met EX-BIN 8115 | -9/Exiles | Aligned with FarCom system 8118 | -9/Exiles | Given EX-Vault access code 8173 | -9/Exiles | Opened EX-Vault 8193 | -9/Exiles | Found Chronowheel 8193 | -9/Exiles | Activated Chronowheel 8193 | -9/Exiles | Spacetime reconverged on an earlier point 8257 | -9/Exiles | Warned to stay clear of 0b10 Research branches 8330 | -9/Exiles | Met EX-DEC 8707 | -9/Exiles | Found Deploy-a-Sentry 8715 | -9/Exiles | Found Deploy-a-Sentry 8724 | -9/Exiles | Found Deploy-a-Sentry 8943 | -9/Exiles | Discovered new exit (range 11) 8967 | -9/Exiles | Left Exiles lab with Deploy-a-Sentry 8967 | -9/Exiles | Entered Mines 9150 | -8/Mines | Discovered new exit (range 3) 9255 | -8/Mines | Entered Materials 9255 | -8/Materials | Evolved 2 slots: Propulsion x1, Utility x1 9256 | -8/Materials | Loaded intel: 12 terminal locations 9628 | -8/Materials | Identified Decoy Drone Bay 9634 | -8/Materials | Discovered new exit (range 18) 9732 | -8/Materials | Build established: Mutant 10266 | -8/Materials | Discovered new exit (range 10) 10827 | -8/Materials | Repaired Arm. Treads+ 11253 | -8/Materials | Discovered new exit (range 5) 11255 | -8/Materials | First assault squad dispatched 11335 | -8/Materials | Core integrity fell below 50% 12195 | -8/Materials | Repaired Arm. Treads+ 12263 | -8/Materials | Core integrity fell below 20% 12313 | -8/Materials | Lost 4 parts (2n1u1w) 12396 | -8/Materials | Destroyed by G-47 Trooper with Particle Gun Last Messages --------------- 12341_ U-05 Engineer builds a Wall. 12341_ U-05 Engineer lays Concrete. 12342_ U-05 Engineer builds a Wall. 12346_ U-05 Engineer lays Concrete. 12350_ U-05 Engineer builds a Wall. 12360_ U-05 Engineer lays Concrete. 12363_ U-05 Engineer builds a Wall. 12366_ G-47 Trooper suffers critical hit (Burn). 12366_ Aluminum Leg melted. 12366_ Imp. Heat Sink melted. 12366_ G-47 Trooper destroyed. 12366_ Switching to secondary target: G-47 Trooper. 12367_ U-05 Engineer builds a Wall. 12382_ Rnf. Deuterium Engine destroyed. 12385_ Imp. Heat Sink melted. 12385_ G-47 Trooper destroyed. 12385_ Lgt. Treads destroyed. 12385_ Critical hit (Burn: +27). 12392_ Acquired 10 matter. 12396_ Critical hit (Burn: +27). Map ----- +----------------------------------------------------+ | ???# """"" #???#! """ # # """#????? | | ???# """"" #???# """ # + """#????? | | ???# """"" #???# "" """ ### """#????? | | ???# #???# "" #?# #????? | | ???# #???# "T """ #?########????? | | ???# #???# "" """ #?????????????? | | ???# #???# "" """ #?????????????? | | ???##########????# #?????????????? | | ####?????????????##########?????????????? | | #???#######??????????????????????????? | | #???# #??????????????????????????? | | #???# #??????????????????????????? | | #???# """ #??????????????????????????? | | #???# """ #??????????????????????????? | | #???# """ #??????????????????????????? | | ######## """ ########??????########?????? | | + # #??????# #?????? | | ####### # """ #??????#! """#?????? | | #?????#/// # """ #??????# """#?????? | | #?????#/// # """ #??????# """#?????? | | #?????#/// # #??????# #?????? | | ####### #######?? ??????? | | # !###+######+### # #####+####????? | | % % #????? | | % % !< #????? | | % / %@ !%!#????? | | ## ###+"" ######%###%####;######????? | | ?####### ## #*g%*! #????????? | | ???????# # # = "" #????????? | | ???????# ## # " "" #????????? | | ???????# ### ## """"" #????????? | | ???????# """ """ #?# ## """"" #????????? | | ???????# """ """ #?# ## """"" #????????? | | ???????# """ """ #?#=%+ """"" #????????? | | ???????# ] #?# =# """"" #????????? | | ???????########????#!%# #????????? | | ???????????#########![##########????????? | | ???????????# #[ # =%#?????????? | | ???????????# """ +*=+[ ##?????????? | | ???????????# "R ! # # ] #??????????? | | ???????????# """ # [# ] #??????????? | | ???????????# # # #??????????? | | ?^?????????#########![# #??????????? | | +#???###############=*########??????????? | | ##### ^^^!*==!=#?????????????????? | | =^!^=*==#?????????????????? | | ^[!!!=""#?????????????????? | | """ """*=Y"#?????????????????? | | """ """*[""#?????????????????? | | #######% """ """]== #?????????????????? | +----------------------------------------------------+ Best States ------------- Heat Dissipation 58 Energy Generation 16 Energy Capacity 290 Matter Stores 300 Matter Capacity 300 Sight Range 16 Terrain Scan Range 14 Terrain Scan Density 10 Armor Coverage 300 Resistance: TH 10 Propulsion Shielding 66 Evasion (%) 40 Recoil Reduction 4 Offensive Hacking 20 Item Schematics ----------------- Huge Storage Unit | -10/Materials | Hacked Lgt. Treads | -10/Mines | Hacked Arm. Treads | -9/Materials | Scanalyzed Imp. Assault Rifle | -9/Materials | Scanalyzed Lgt. Armor Plating | -9/Materials | Scanalyzed Rocket Launcher | -9/Materials | Scanalyzed Imp. Treads | -9/Materials | Scanalyzed Structural Scanner | -9/Materials | Scanalyzed Sub. Optics | -9/Materials | Scanalyzed Imp. Ion Engine | -9/Materials | Scanalyzed Imp. Heat Sink | -9/Materials | Scanalyzed Hacking Suite | -9/Materials | Scanalyzed Mni. Grenade Launcher | -9/Materials | Scanalyzed Field Recycling Unit | -9/Materials | Scanalyzed Autogun | -9/Materials | Scanalyzed Hrd. Heavy Armor Plating | -8/Materials | Scanalyzed EMP Blaster | -8/Materials | Scanalyzed Imp. Propulsion Shielding | -8/Materials | Scanalyzed Reflective Plating | -8/Materials | Scanalyzed Lyr. Light Armor Plating | -8/Materials | Scanalyzed Imp. Cooling System | -8/Materials | Scanalyzed Adv. Treads | -8/Materials | Scanalyzed Imp. Deuterium Engine | -8/Materials | Scanalyzed Adv. Beam Rifle | -8/Materials | Scanalyzed Shield Generator | -8/Materials | Scanalyzed Robot Schematics ------------------ None Fabricated ------------ Nothing Repaired ---------- Lgt. Treads | 43% | -10/Materials Lgt. Treads | 50% | -10/Materials Lgt. Treads | 31% | -9/Materials Lgt. Treads | 30% | -9/Materials Lgt. Treads | 45% | -9/Materials Arm. Treads | 62% | -8/Materials Arm. Treads | 14% | -8/Materials Studied --------- Arm. Treads | -8/Materials | Hacked Alien Tech Used ----------------- None Achievements -------------- None Challenges ------------ None Game ------ Seed BehemothAntimatterPenetrator Manual? 0 Play Time 01:03:00 Cumulative 331.8 hours Start 2025.11.24 @ 21:22:02 End 2025.11.25 @ 10:31:52 Sessions 3 Manual Loads 0 Difficulty Rogue Special Mode None Game No. 348 Rogue 344 Adventurer 3 Explorer 1 Win Type - Total 2 Types 2/0/0/0/0/0/0/0/0/0 Lore% 82 Gallery% 78 Achievement% 63 Wizard Run 0 Options --------- Layout 0 ASCII 0 Keyboard 0 Movement Mouse Keybinds 0 Fullscreen 2 Font 18/SmallcapsGlow Map View 76x50 Zoom Use 0% Tactical HUD 1 Map Filters NONE Filters NONE Steam 1 RUN: 855b2262-6fd9-449b-93be-443c42626fe3